Workbook

Sheet Inicio
O1: 6
D2: Indicadores Sistema Eléctrico CCAA | I2: www.ree.es
I3: Fecha de actualización: | K3: 2021-02-22

Sheet Cuadro mando
A3: Principales Indicadores Extremadura 2020
B7: RED DE TRANSPORTE1
I45: (1) km líneas de la Red de Transporte

Sheet Red_de_transporte
A3: Red de transporte Extremadura 2020
B7: RED DE TRANSPORTE1 | H7: VARIACIONES DE LA RdT
B11: AÑO 2020 | D11: =datos_RdT!N72 -> Extremadura | E11: España | F11: % del total
B12: km circuitos 400 kV | D12: =datos_RdT!N73 -> 2291.070447 | E12: =datos_RdT!V73 -> 21753.144 | F12: =D12*100/E12 -> 10.53213479
B13: km circuitos 220 kV | D13: =datos_RdT!N74 -> 859.3478674 | E13: =datos_RdT!V74 -> 19940.0855 | F13: =D13*100/E13 -> 4.309649863
B14: km circuitos <220 kV | D14: =datos_RdT!N75 -> 5.04 | E14: =datos_RdT!V75 -> 2859.742 | F14: 0.1762396748
B15: km circuitos | D15: =datos_RdT!N76 -> 3155.458314 | E15: =datos_RdT!V76 -> 44552.9715 | F15: 7.082486775
B16: Posiciones 400 kV | D16: =datos_RdT!N78 -> 115 | E16: =datos_RdT!V78 -> 1555.839 | F16: =D16*100/E16 -> 7.391510304
B17: Posiciones 220 kV | D17: =datos_RdT!N79 -> 92 | E17: =datos_RdT!V79 -> 3493.997 | F17: =D17*100/E17 -> 2.63308755
B18: Posiciones <220 kV | D18: =datos_RdT!N80 -> 0 | E18: =datos_RdT!V80 -> 1127 | F18: 0
B19: Posiciones | D19: =datos_RdT!N81 -> 207 | E19: =datos_RdT!V81 -> 6176.836 | F19: 3.351230306
B20: Transformadores2 (MVA) | D20: =datos_RdT!N83 -> 2700 | E20: =datos_RdT!V83 -> 90525 | F20: 2.982601491
B22: (1) Incluye los activos de la red de transporte del resto de empresas.
B23: (2) No contempla desfasadores
B26: EVOLUCIÓN DE LA RdT | H26: % km LÍNEAS C.A. vs. KILÓMETROS TOTALES

Sheet AVISO LEGAL

Sheet datos_RdT (hidden)
B1: 2015
B2: CCAA | C2: Andalucía | D2: Aragón | E2: Asturias | F2: Baleares | G2: C. Valenciana | H2: Canarias | I2: Cantabria | J2: Castilla-La Mancha | K2: Castilla y León | L2: Cataluña | M2: Ceuta | N2: Extremadura | O2: Galicia | P2: La Rioja | Q2: Madrid | R2: Melilla | S2: Murcia | T2: Navarra | U2: País Vasco | V2: TOTAL | W2: MÓVILES | X2: PENINSULAR | Y2: NO PENINSULAR
B3: km líneas 400 kV | C3: 2764.00959 | D3: 1276.025799 | E3: 493.5427643 | F3: 0 | G3: 972.5073885 | H3: 0 | I3: 240.5107043 | J3: 2578.534496 | K3: 4453.530032 | L3: 2235.610333 | N3: 2285.508447 | O3: 1218.475727 | P3: 114.9490595 | Q3: 965.9581087 | S3: 708.1121371 | T3: 175.9700702 | U3: 697.3623434 | V3: =SUM(C3:U3) -> 21180.607 | X3: =V3-Y3 -> 21180.607 | Y3: =F3+H3 -> 0
B4: km líneas 220 kV | C4: 3169.474495 | D4: 1848.840817 | E4: 431.5110202 | F4: 431.36 | G4: 1263.96776 | H4: 215.867 | I4: 324.1211061 | J4: 1524.543979 | K4: 3258.039074 | L4: 2511.925294 | N4: 854.5408674 | O4: 1324.476 | P4: 142.308 | Q4: 1186.787385 | S4: 107.71574 | T4: 318.8290202 | U4: 661.7469412 | V4: =SUM(C4:U4) -> 19576.0545 | X4: =V4-Y4 -> 18928.8275 | Y4: =F4+H4 -> 647.227
B5: km líneas <220 kV | F5: 1242.642 | H5: 1131.092 | L5: 39.44 | N5: 23 | O5: 12.3 | V5: 2448.474 | X5: 74.74 | Y5: 2373.734
B6: Total km líneas | C6: =SUM(C3:C5) -> 5933.484084 | D6: =SUM(D3:D5) -> 3124.866616 | E6: 925.0537845 | F6: 1674.002 | G6: 2236.475148 | H6: 1346.959 | I6: 564.6318104 | J6: 4103.078476 | K6: 7711.569106 | L6: 4786.975627 | M6: 0 | N6: 3163.049314 | O6: 2555.251727 | P6: 257.2570595 | Q6: 2152.745494 | R6: 0 | S6: 815.8278771 | T6: 494.7990904 | U6: 1359.109285 | V6: =SUM(V3:V5) -> 43205.1355 | X6: =SUM(X3:X5) -> 40184.1745 | Y6: =SUM(Y3:Y5) -> 3020.961
B7: =CONCATENATE("Δ" & $B$1 & "/" & $B$1-1) -> Δ2015/2014 | C7: 0.5437868575 | D7: 1.239220958 | E7: 0 | F7: 8.32917015 | G7: 0.5956642904 | H7: 4.485488331 | I7: 3.330699211 | J7: 0 | K7: 0.01830053263 | L7: 0.3701785093 | N7: 2.391283134 | O7: 0 | P7: 0 | Q7: 0 | S7: 0 | T7: 0 | U7: 2.712790176 | V7: 0.9749255658 | X7: 0.57721268 | Y7: 6.58101267
B8: Posiciones 400 kV | C8: 194 | D8: 98 | E8: 48 | G8: 153 | I8: 15 | J8: 112 | K8: 219 | L8: 136 | N8: 103 | O8: 71 | P8: 8 | Q8: 103 | S8: 66 | T8: 28 | U8: 79 | V8: =SUM(C8:U8)+W8 -> 1433 | X8: =V8-Y8 -> 1433 | Y8: =F8+H8 -> 0
B9: Posiciones 220 kV | C9: 435 | D9: 214 | E9: 45 | F9: 114 | G9: 291 | H9: 46 | I9: 50 | J9: 137 | K9: 242 | L9: 598 | N9: 88 | O9: 216 | P9: 30 | Q9: 524 | S9: 48 | T9: 49 | U9: 147 | V9: =SUM(C9:U9)+W9 -> 3281 | W9: 7 | X9: =V9-Y9 -> 3121 | Y9: =F9+H9 -> 160
B10: Posiciones <220 kV | F10: 526 | H10: 384 | L10: 3 | O10: 1 | V10: 914 | X10: =V10-Y10 -> 4 | Y10: =F10+H10 -> 910
B11: Total posiciones | C11: =SUM(C8:C10) -> 629 | D11: 312 | E11: 93 | F11: 640 | G11: 444 | H11: 430 | I11: 65 | J11: 249 | K11: 461 | L11: 737 | M11: 0 | N11: 191 | O11: 288 | P11: 38 | Q11: 627 | R11: 0 | S11: 114 | T11: 77 | U11: =SUM(U8:U10) -> 226 | V11: =SUM(V8:V10) -> 5628 | W11: 7 | X11: =SUM(X8:X10) -> 4558 | Y11: =SUM(Y8:Y10) -> 1070
B12: =CONCATENATE("Δ" & $B$1 & "/" & $B$1-1) -> Δ2015/2014 | C12: 3.28407225 | D12: 3.311258278 | E12: 0 | F12: 5.436573311 | G12: 2.304147465 | H12: 3.614457831 | I12: 16.07142857 | J12: 0 | K12: 6.221198157 | L12: 1.236263736 | N12: 0 | O12: 0 | P12: 0 | Q12: 0 | S12: 1.785714286 | T12: 0 | U12: 0.4444444444 | V12: 2.476329206 | W12: 0 | X12: 1.968680089 | Y12: 4.69667319
B13: Transformadores | C13: 14420 | D13: 4674 | E13: 1300 | F13: 3463 | G13: 8350 | H13: 2250 | I13: 2100 | J13: 1200 | K13: 6131 | L13: 11050 | N13: 2700 | O13: 5700 | P13: 600 | Q13: 11700 | S13: 3450 | T13: 1600 | U13: 4300 | V13: =SUM(C13:U13)+W13 -> 85888 | W13: 900 | X13: =V13-Y13 -> 80175 | Y13: =F13+H13 -> 5713
B14: =CONCATENATE("Δ" & $B$1 & "/" & $B$1-1) -> Δ2015/2014 | C14: 0 | D14: 0 | E14: 0 | F14: 16.09118337 | G14: 0 | H14: 20 | I14: 0 | J14: 0 | K14: 0 | L14: 0 | N14: 0 | O14: 0 | P14: 0 | Q14: 0 | S14: 0 | T14: 0 | U14: 0 | V14: 1.005491985 | W14: 0 | X14: 0 | Y14: 17.59983532
B15: 2016
B16: CCAA | C16: Andalucía | D16: Aragón | E16: Asturias | F16: Baleares | G16: C. Valenciana | H16: Canarias | I16: Cantabria | J16: Castilla-La Mancha | K16: Castilla y León | L16: Cataluña | M16: Ceuta | N16: Extremadura | O16: Galicia | P16: La Rioja | Q16: Madrid | R16: Melilla | S16: Murcia | T16: Navarra | U16: País Vasco | V16: TOTAL | W16: MÓVILES | X16: PENINSULAR | Y16: NO PENINSULAR
B17: km líneas 400 kV | C17: 2764.00959 | D17: 1447.051699 | E17: 529.5022043 | F17: 0 | G17: 1073.171488 | H17: 0 | I17: 240.5107043 | J17: 2578.534496 | K17: 4453.530032 | L17: 2235.610333 | N17: 2285.508447 | O17: 1345.968287 | P17: 114.9490595 | Q17: 965.9581087 | S17: 708.1121371 | T17: 175.9700702 | U17: 697.3623434 | V17: =SUM(C17:U17) -> 21615.749 | X17: =V17-Y17 -> 21615.749 | Y17: =F17+H17 -> 0
B18: km líneas 220 kV | C18: 3194.421495 | D18: 1848.840817 | E18: 431.5110202 | F18: 432.214 | G18: 1291.80276 | H18: 220.243 | I18: 324.1211061 | J18: 1524.543979 | K18: 3258.039074 | L18: 2529.785294 | N18: 854.5408674 | O18: 1325.176 | P18: 142.308 | Q18: 1186.787385 | S18: 124.31174 | T18: 318.8290202 | U18: 661.7859412 | V18: =SUM(C18:U18) -> 19669.2615 | X18: =V18-Y18 -> 19016.8045 | Y18: =F18+H18 -> 652.457
B19: km líneas <220 kV | F19: 1368.722 | H19: 1133.922 | L19: 39.44 | N19: 23 | O19: 12.3 | V19: 2577.384 | X19: 74.74 | Y19: 2502.644
B20: Total km líneas | C20: =SUM(C17:C19) -> 5958.431084 | D20: =SUM(D17:D19) -> 3295.892516 | E20: 961.0132245 | F20: 1800.936 | G20: 2364.974248 | H20: 1354.165 | I20: 564.6318104 | J20: 4103.078476 | K20: 7711.569106 | L20: 4804.835627 | M20: 0 | N20: 3163.049314 | O20: 2683.444287 | P20: 257.2570595 | Q20: 2152.745494 | R20: 0 | S20: 832.4238771 | T20: 494.7990904 | U20: 1359.148285 | V20: =SUM(V17:V19) -> 43862.3945 | X20: =SUM(X17:X19) -> 40707.2935 | Y20: =SUM(Y17:Y19) -> 3155.101
B21: =CONCATENATE("Δ" & $B$15 & "/" & $B$15-1) -> Δ2016/2015 | C21: =(C20/C6-1)*100 -> 0.4204443737 | D21: =(D20/D6-1)*100 -> 5.473062406 | E21: 3.887281 | F21: 7.582667165 | G21: 5.745608221 | H21: 0.5349828762 | I21: 0 | J21: =(J20/J6-1)*100 -> 0 | K21: =(K20/K6-1)*100 -> 0 | L21: =(L20/L6-1)*100 -> 0.3730956953 | N21: =(N20/N6-1)*100 -> 0 | O21: 5.016827056 | P21: =(P20/P6-1)*100 -> 0 | Q21: =(Q20/Q6-1)*100 -> 0 | S21: =(S20/S6-1)*100 -> 2.034252624 | T21: =(T20/T6-1)*100 -> 0 | U21: 0.00286952642 | V21: =(V20/V6-1)*100 -> 1.521252028 | X21: =(X20/X6-1)*100 -> 1.301803525 | Y21: =(Y20/Y6-1)*100 -> 4.440308895
B22: Posiciones 400 kV | C22: 195 | D22: 98 | E22: 48 | G22: 167 | I22: 15 | J22: 113 | K22: 219 | L22: 136 | N22: 103 | O22: 71 | P22: 8 | Q22: 103 | S22: 66 | T22: 28 | U22: 80 | V22: 1450 | X22: =V22-Y22 -> 1450 | Y22: =F22+H22 -> 0
B23: Posiciones 220 kV | C23: 437 | D23: 214 | E23: 45 | F23: 115 | G23: 297 | H23: 55 | I23: 50 | J23: 137 | K23: 243 | L23: 598 | N23: 88 | O23: 222 | P23: 30 | Q23: 526 | S23: 48 | T23: 49 | U23: 148 | V23: 3309 | W23: 7 | X23: =V23-Y23 -> 3139 | Y23: =F23+H23 -> 170
B24: Posiciones <220 kV | F24: 533 | H24: 395 | L24: 3 | O24: 1 | V24: 932 | X24: =V24-Y24 -> 4 | Y24: =F24+H24 -> 928
B25: Total posiciones | C25: =SUM(C22:C24) -> 632 | D25: 312 | E25: 93 | F25: 648 | G25: 464 | H25: 450 | I25: 65 | J25: 250 | K25: 462 | L25: 737 | M25: 0 | N25: 191 | O25: 294 | P25: 38 | Q25: 629 | R25: 0 | S25: 114 | T25: 77 | U25: 228 | V25: =SUM(V22:V24) -> 5691 | W25: 7 | X25: =SUM(X22:X24) -> 4593 | Y25: =SUM(Y22:Y24) -> 1098
B26: =CONCATENATE("Δ" & $B$15 & "/" & $B$15-1) -> Δ2016/2015 | C26: =(C25/C11-1)*100 -> 0.4769475358 | D26: =(D25/D11-1)*100 -> 0 | E26: 0 | F26: 1.25 | G26: 4.504504505 | H26: 4.651162791 | I26: 0 | J26: 0.4016064257 | K26: 0.2169197397 | L26: 0 | N26: 0 | O26: 2.083333333 | P26: 0 | Q26: 0.3189792663 | S26: 0 | T26: 0 | U26: 0.8849557522 | V26: 1.119402985 | W26: 0 | X26: 0.7678806494 | Y26: 2.61682243
B27: Transformadores | C27: 14420 | D27: 4674 | E27: 1300 | F27: 3463 | G27: 8950 | H27: 2250 | I27: 2100 | J27: 1200 | K27: 6131 | L27: 11050 | N27: 2700 | O27: 5700 | P27: 600 | Q27: 11700 | S27: 3450 | T27: 1600 | U27: 4300 | V27: =SUM(C27:U27)+W27 -> 86488 | W27: 900 | X27: 79271.475 | Y27: 4668
B28: =CONCATENATE("Δ" & $B$15 & "/" & $B$15-1) -> Δ2016/2015 | C28: =(C27/C13-1)*100 -> 0 | D28: =(D27/D13-1)*100 -> 0 | E28: 0 | F28: 0 | G28: 7.185628743 | H28: 0 | I28: 0 | J28: 0 | K28: 0 | L28: 0 | N28: 0 | O28: 0 | P28: 0 | Q28: 0 | S28: 0 | T28: 0 | U28: 0 | V28: 0.6985842027 | W28: 0 | X28: -1.126941066 | Y28: -18.29161561
B29: 2017
B30: CCAA | C30: Andalucía | D30: Aragón | E30: Asturias | F30: Baleares | G30: C. Valenciana | H30: Canarias | I30: Cantabria | J30: Castilla-La Mancha | K30: Castilla y León | L30: Cataluña | M30: Ceuta | N30: Extremadura | O30: Galicia | P30: La Rioja | Q30: Madrid | R30: Melilla | S30: Murcia | T30: Navarra | U30: País Vasco | V30: TOTAL | W30: MÓVILES | X30: PENINSULAR | Y30: NO PENINSULAR
B31: km líneas 400 kV | C31: 2764.00959 | D31: 1447.051699 | E31: 529.5022043 | F31: 0 | G31: 1073.171488 | H31: 0 | I31: 240.5107043 | J31: 2612.814496 | K31: 4501.088432 | L31: 2236.079333 | N31: 2285.508447 | O31: 1345.968287 | P31: 114.9490595 | Q31: 992.6117087 | S31: 708.1121371 | T31: 175.9700702 | U31: 697.3623434 | V31: =SUM(C31:U31) -> 21724.71 | X31: =V31-Y31 -> 21724.71 | Y31: =F31+H31 -> 0
B32: km líneas 220 kV | C32: 3194.421495 | D32: 1858.520817 | E32: 431.5110202 | F32: 432.214 | G32: 1306.97176 | H32: 220.243 | I32: 324.1211061 | J32: 1524.543979 | K32: 3258.039074 | L32: 2530.185294 | N32: 854.5408674 | O32: 1325.176 | P32: 142.308 | Q32: 1186.787385 | S32: 124.31174 | T32: 318.8290202 | U32: 661.8999412 | V32: =SUM(C32:U32) -> 19694.6245 | X32: =V32-Y32 -> 19042.1675 | Y32: =F32+H32 -> 652.457
B33: km líneas <220 kV | F33: 1377.005 | H33: 1134.854 | L33: 39.44 | N33: 23 | O33: 12.3 | V33: =SUM(C33:U33) -> 2586.599 | X33: 74.74 | Y33: 2511.859
B34: Total km líneas | C34: =SUM(C31:C33) -> 5958.431084 | D34: =SUM(D31:D33) -> 3305.572516 | E34: 961.0132245 | F34: 1809.219 | G34: 2380.143248 | H34: 1355.097 | I34: 564.6318104 | J34: 4137.358476 | K34: 7759.127506 | L34: 4805.704627 | M34: 0 | N34: 3163.049314 | O34: 2683.444287 | P34: 257.2570595 | Q34: 2179.399094 | R34: 0 | S34: 832.4238771 | T34: 494.7990904 | U34: 1359.262285 | V34: =SUM(V31:V33) -> 44005.9335 | W34: =SUM(W31:W33) -> 0 | X34: 40841.6175 | Y34: 3164.316
B35: =CONCATENATE("Δ" & $B$29 & "/" & $B$29-1) -> Δ2017/2016 | C35: =(C34/C20-1)*100 -> 0 | D35: =(D34/D20-1)*100 -> 0.293698898 | E35: 0 | F35: 0.4599275044 | G35: 0.6414023328 | H35: 0.06882470009 | I35: 0 | J35: 0.8354702501 | K35: 0.6167149558 | L35: 0.01808594648 | N35: 0 | O35: 0 | P35: 0 | Q35: 1.238121277 | S35: 0 | T35: 0 | U35: 0.008387605774 | V35: 0.327248436 | X35: 0.329975266 | Y35: 0.2920667199
B36: Posiciones 400 kV | C36: 195 | D36: 99 | E36: 48 | G36: 171 | I36: 15 | J36: 113 | K36: 233 | L36: 142 | N36: 103 | O36: 71 | P36: 8 | Q36: 104 | S36: 66 | T36: 28 | U36: 80 | V36: =SUM(C36:U36)+W36 -> 1476 | X36: =V36-Y36 -> 1476 | Y36: =F36+H36 -> 0
B37: Posiciones 220 kV | C37: 437 | D37: 215 | E37: 45 | F37: 115 | G37: 310 | H37: 55 | I37: 50 | J37: 139 | K37: 243 | L37: 600 | N37: 88 | O37: 222 | P37: 30 | Q37: 526 | S37: 48 | T37: 50 | U37: 150 | V37: =SUM(C37:U37)+W37 -> 3330 | W37: 7 | X37: =V37-Y37 -> 3160 | Y37: =F37+H37 -> 170
B38: Posiciones <220 kV | F38: 539 | H38: 445 | L38: 3 | O38: 1 | V38: 988 | X38: =V38-Y38 -> 4 | Y38: =F38+H38 -> 984
B39: Total posiciones | C39: =SUM(C36:C38) -> 632 | D39: 314 | E39: 93 | F39: 654 | G39: 481 | H39: 500 | I39: 65 | J39: 252 | K39: 476 | L39: 745 | M39: 0 | N39: 191 | O39: 294 | P39: 38 | Q39: 630 | R39: 0 | S39: 114 | T39: 78 | U39: 230 | V39: =SUM(V36:V38) -> 5794 | W39: 7 | X39: =SUM(X36:X38) -> 4640 | Y39: =SUM(Y36:Y38) -> 1154
B40: =CONCATENATE("Δ" & $B$29 & "/" & $B$29-1) -> Δ2017/2016 | C40: =(C39/C25-1)*100 -> 0 | D40: =(D39/D25-1)*100 -> 0.641025641 | E40: 0 | F40: 0.9259259259 | G40: 3.663793103 | H40: =(H39/H25-1)*100 -> 11.11111111 | I40: =(I39/I25-1)*100 -> 0 | J40: =(J39/J25-1)*100 -> 0.8 | K40: 3.03030303 | L40: =(L39/L25-1)*100 -> 1.085481682 | N40: =(N39/N25-1)*100 -> 0 | O40: 0 | P40: =(P39/P25-1)*100 -> 0 | Q40: =(Q39/Q25-1)*100 -> 0.1589825119 | S40: =(S39/S25-1)*100 -> 0 | T40: =(T39/T25-1)*100 -> 1.298701299 | U40: =(U39/U25-1)*100 -> 0.8771929825 | V40: =(V39/V25-1)*100 -> 1.809875242 | W40: 0 | X40: =(X39/X25-1)*100 -> 1.02329632 | Y40: =(Y39/Y25-1)*100 -> 5.100182149
B41: Transformadores | C41: 14420 | D41: 4674 | E41: 1300 | F41: 3463 | G41: 8950 | H41: 2810 | I41: 2100 | J41: 1200 | K41: 6131 | L41: 11050 | N41: 2700 | O41: 5700 | P41: 600 | Q41: 11700 | S41: 3450 | T41: 1600 | U41: 4300 | V41: =SUM(C41:U41)+W41 -> 87048 | W41: 900 | X41: =V41-Y41 -> 80775 | Y41: =F41+H41 -> 6273
B42: =CONCATENATE("Δ" & $B$29 & "/" & $B$29-1) -> Δ2017/2016 | C42: =(C41/C27-1)*100 -> 0 | D42: =(D41/D27-1)*100 -> 0 | E42: 0 | F42: 0 | G42: 0 | H42: 24.88888889 | I42: 0 | J42: 0 | K42: 0 | L42: 0 | N42: 0 | O42: 0 | P42: 0 | Q42: 0 | S42: 0 | T42: 0 | U42: 0 | V42: 0.6474886689 | W42: 0 | X42: 1.896678471 | Y42: 34.38303342
B43: 2018
B44: CCAA | C44: Andalucía | D44: Aragón | E44: Asturias | F44: Baleares | G44: C. Valenciana | H44: Canarias | I44: Cantabria | J44: Castilla-La Mancha | K44: Castilla y León | L44: Cataluña | M44: Ceuta | N44: Extremadura | O44: Galicia | P44: La Rioja | Q44: Madrid | R44: Melilla | S44: Murcia | T44: Navarra | U44: País Vasco | V44: TOTAL | W44: MÓVILES | X44: PENINSULAR | Y44: NO PENINSULAR
B45: km líneas 400 kV | C45: 2764.00959 | D45: 1447.051699 | E45: 529.5022043 | F45: =F31 -> 0 | G45: 1073.171488 | H45: =H31 -> 0 | I45: 240.5107043 | J45: 2612.814496 | K45: 4501.848432 | L45: 2237.079333 | N45: 2285.508447 | O45: 1345.968287 | P45: 114.9490595 | Q45: 992.6117087 | S45: 708.1121371 | T45: 175.9700702 | U45: 697.3623434 | V45: =SUM(C45:U45) -> 21726.47 | X45: =V45-Y45 -> 21726.47 | Y45: =F45+H45 -> 0
B46: km líneas 220 kV | C46: 3209.687495 | D46: 1858.520817 | E46: 431.5110202 | F46: 432.214 | G46: 1333.51576 | H46: 239.145 | I46: 324.1211061 | J46: 1524.543979 | K46: 3287.754074 | L46: 2534.163294 | N46: 854.5408674 | O46: 1325.176 | P46: 142.308 | Q46: 1186.787385 | S46: 124.31174 | T46: 318.8290202 | U46: 661.8999412 | V46: =SUM(C46:U46) -> 19789.0295 | X46: =V46-Y46 -> 19117.6705 | Y46: =F46+H46 -> 671.359
B47: km líneas <220 kV | F47: 1421.728 | H47: 1242.691 | L47: 39.44 | N47: 23 | O47: 12.3 | V47: =SUM(C47:U47) -> 2739.159 | X47: 74.74 | Y47: 2664.419
B48: Total km líneas | C48: =SUM(C45:C47) -> 5973.697084 | D48: =SUM(D45:D47) -> 3305.572516 | E48: 961.0132245 | F48: 1853.942 | G48: 2406.687248 | H48: 1481.836 | I48: 564.6318104 | J48: 4137.358476 | K48: 7789.602506 | L48: 4810.682627 | M48: 0 | N48: 3163.049314 | O48: 2683.444287 | P48: 257.2570595 | Q48: 2179.399094 | R48: 0 | S48: 832.4238771 | T48: 494.7990904 | U48: 1359.262285 | V48: =SUM(V45:V47) -> 44254.6585 | X48: =SUM(X45:X47) -> 40918.8805 | Y48: =SUM(Y45:Y47) -> 3335.778
B49: =CONCATENATE("Δ" & $B$43 & "/" & $B$43-1) -> Δ2018/2017 | C49: =(C48/C34-1)*100 -> 0.2562083841 | D49: =(D48/D34-1)*100 -> 0 | E49: 0 | F49: 2.471950604 | G49: 1.115226994 | H49: 9.352762201 | I49: 0 | J49: 0 | K49: 0.3927632324 | L49: 0.103585226 | N49: 0 | O49: 0 | P49: 0 | Q49: 0 | S49: 0 | T49: 0 | U49: 0 | V49: 0.5652078713 | X49: 0.1891771304 | Y49: 5.418611795
B50: Posiciones 400 kV | C50: 197 | D50: 99 | E50: 49 | G50: 171 | I50: 15 | J50: 114 | K50: 242 | L50: 150 | M50: 0 | N50: 104 | O50: 71 | P50: 8 | Q50: 104 | S50: 66 | T50: 28 | U50: 80 | V50: =SUM(C50:U50)+W50 -> 1498 | X50: =V50-Y50 -> 1498 | Y50: =F50+H50 -> 0
B51: Posiciones 220 kV | C51: 448 | D51: 217 | E51: 45 | F51: 116 | G51: 310 | H51: 69 | I51: 50 | J51: 139 | K51: 248 | L51: 613 | M51: 0 | N51: 88 | O51: 222 | P51: 30 | Q51: 526 | S51: 48 | T51: 50 | U51: 151 | V51: =SUM(C51:U51)+W51 -> 3377 | W51: 7 | X51: =V51-Y51 -> 3192 | Y51: =F51+H51 -> 185
B52: Posiciones <220 kV | F52: 539 | H52: 500 | L52: 3 | O52: 1 | V52: =SUM(C52:U52)+W52 -> 1043 | X52: =V52-Y52 -> 4 | Y52: =F52+H52 -> 1039
B53: Total posiciones | C53: =SUM(C50:C52) -> 645 | D53: 316 | E53: 94 | F53: =SUM(F50:F52) -> 655 | G53: 481 | H53: 569 | I53: 65 | J53: 253 | K53: 490 | L53: 766 | M53: 0 | N53: 192 | O53: 294 | P53: 38 | Q53: 630 | R53: 0 | S53: 114 | T53: 78 | U53: 231 | V53: =SUM(V50:V52) -> 5918 | W53: 7 | X53: =SUM(X50:X52) -> 4694 | Y53: =SUM(Y50:Y52) -> 1224
B54: =CONCATENATE("Δ" & $B$43 & "/" & $B$43-1) -> Δ2018/2017 | C54: =(C53/C39-1)*100 -> 2.056962025 | D54: =(D53/D39-1)*100 -> 0.6369426752 | E54: 1.075268817 | F54: 0.1529051988 | G54: 0 | H54: 13.8 | I54: 0 | J54: 0.3968253968 | K54: 2.941176471 | L54: 2.818791946 | N54: 0.5235602094 | O54: =(O53/O39-1)*100 -> 0 | P54: =(P53/P39-1)*100 -> 0 | Q54: =(Q53/Q39-1)*100 -> 0 | S54: =(S53/S39-1)*100 -> 0 | T54: =(T53/T39-1)*100 -> 0 | U54: =(U53/U39-1)*100 -> 0.4347826087 | V54: =(V53/V39-1)*100 -> 2.140144978 | W54: 0 | X54: 0 | Y54: 0
B55: Transformadores | C55: 14420 | D55: 5456 | E55: 1300 | F55: 3463 | G55: 8950 | H55: 3310 | I55: 2100 | J55: 1200 | K55: 6131 | L55: 12350 | N55: 2700 | O55: 5700 | P55: 600 | Q55: 11700 | S55: 3450 | T55: 1600 | U55: 4500 | V55: =SUM(C55:U55)+W55 -> 89830 | W55: 900 | X55: =V55-Y55 -> 83057 | Y55: =F55+H55 -> 6773
B56: =CONCATENATE("Δ" & $B$43 & "/" & $B$43-1) -> Δ2018/2017 | C56: =(C55/C41-1)*100 -> 0 | D56: =(D55/D41-1)*100 -> 16.73085152 | E56: 0 | F56: 0 | G56: 0 | H56: 17.79359431 | I56: 0 | J56: 0 | K56: 0 | L56: 11.76470588 | N56: 0 | O56: 0 | P56: 0 | Q56: 0 | S56: 0 | T56: 0 | U56: 4.651162791 | V56: 3.195937873 | W56: 0 | X56: 2.825131538 | Y56: 7.970667942
B57: 2019
B58: CCAA | C58: Andalucía | D58: Aragón | E58: Asturias | F58: Baleares | G58: C. Valenciana | H58: Canarias | I58: Cantabria | J58: Castilla-La Mancha | K58: Castilla y León | L58: Cataluña | M58: Ceuta | N58: Extremadura | O58: Galicia | P58: La Rioja | Q58: Madrid | R58: Melilla | S58: Murcia | T58: Navarra | U58: País Vasco | V58: TOTAL | W58: MÓVILES | X58: PENINSULAR | Y58: NO PENINSULAR
B59: km líneas 400 kV | C59: 2764.14959 | D59: 1447.051699 | E59: 529.5022043 | F59: 0 | G59: 1073.171488 | H59: 0 | I59: 240.5107043 | J59: 2612.814496 | K59: 4511.660432 | L59: 2237.079333 | N59: 2285.508447 | O59: 1345.968287 | P59: 114.9490595 | Q59: 992.6117087 | S59: 708.1121371 | T59: 175.9700702 | U59: 698.9563434 | V59: =SUM(C59:U59) -> 21738.016 | X59: =V59-Y59 -> 21738.016 | Y59: =F59+H59 -> 0
B60: km líneas 220 kV | C60: 3258.393495 | D60: 1876.547817 | E60: 431.5110202 | F60: 447.6638 | G60: 1334.47376 | H60: 239.145 | I60: 324.1211061 | J60: 1524.543979 | K60: 3317.344074 | L60: 2535.118294 | N60: 854.9298674 | O60: 1328.496 | P60: 142.308 | Q60: 1186.937385 | S60: 124.31174 | T60: 318.8290202 | U60: 661.8999412 | V60: =SUM(C60:U60) -> 19906.5743 | X60: =V60-Y60 -> 19219.7655 | Y60: =F60+H60 -> 686.8088
B61: km líneas <220 kV | F61: 1425.657 | H61: 1310.047 | L61: 39.44 | N61: 5.04 | O61: 12.3 | V61: 2792.484 | X61: 56.78 | Y61: 2735.704
B62: Total km líneas | C62: =SUM(C59:C61) -> 6022.543084 | D62: =SUM(D59:D61) -> 3323.599516 | E62: 961.0132245 | F62: 1873.3208 | G62: 2407.645248 | H62: 1549.192 | I62: 564.6318104 | J62: 4137.358476 | K62: 7829.004506 | L62: 4811.637627 | M62: 0 | N62: 3145.478314 | O62: 2686.764287 | P62: 257.2570595 | Q62: 2179.549094 | R62: 0 | S62: 832.4238771 | T62: 494.7990904 | U62: 1360.856285 | V62: 44437.0743 | X62: =SUM(X59:X61) -> 41014.5615 | Y62: =SUM(Y59:Y61) -> 3422.5128
B63: =CONCATENATE("Δ" & $B$57 & "/" & $B$57-1) -> Δ2019/2018 | C63: 0.2666036915 | D63: 0.5306457033 | E63: 0 | F63: 2.44402976 | G63: 1.090233197 | H63: 8.534318437 | I63: 0 | J63: 0 | K63: 0.3878701014 | L63: 0.105236572 | N63: 0 | O63: 0 | P63: 0 | Q63: 0 | S63: 0 | T63: 0 | U63: 0 | V63: 0.3352935099 | X63: 0.3386428746 | Y63: 0.2921503343
B64: Posiciones 400 kV | C64: 199 | D64: 100 | E64: 49 | F64: 0 | G64: 184 | H64: 0 | I64: 15 | J64: 116 | K64: 251 | L64: 151 | M64: 0 | N64: 107 | O64: 73 | P64: 8 | Q64: 106 | R64: 0 | S64: 68 | T64: 28 | U64: 80 | V64: =SUM(C64:U64)+W64 -> 1535 | X64: =V64-Y64 -> 1535 | Y64: =F64+H64 -> 0
B65: Posiciones 220 kV | C65: 464 | D65: 224 | E65: 45 | F65: 124 | G65: 324 | H65: 72 | I65: 50 | J65: 142 | K65: 254 | L65: 626 | M65: 0 | N65: 91 | O65: 233 | P65: 30 | Q65: 530 | R65: 0 | S65: 48 | T65: 50 | U65: 151 | V65: =SUM(C65:U65)+W65 -> 3465 | W65: 7 | X65: =V65-Y65 -> 3269 | Y65: =F65+H65 -> 196
B66: Posiciones <220 kV | F66: 565 | H66: 514 | L66: 3 | O66: 1 | V66: =SUM(C66:U66)+W66 -> 1083 | X66: =V66-Y66 -> 4 | Y66: =F66+H66 -> 1079
B67: Total posiciones | C67: =SUM(C64:C66) -> 663 | D67: =SUM(D64:D66) -> 324 | E67: 94 | F67: =SUM(F64:F66) -> 689 | G67: 508 | H67: 586 | I67: 65 | J67: 258 | K67: 505 | L67: 780 | M67: 0 | N67: 198 | O67: 307 | P67: 38 | Q67: 636 | R67: 0 | S67: 116 | T67: 78 | U67: 231 | V67: =SUM(V64:V66) -> 6083 | W67: =SUM(W64:W66) -> 7 | X67: =SUM(X64:X66) -> 4808 | Y67: =SUM(Y64:Y66) -> 1275
B68: =CONCATENATE("Δ" & $B$57 & "/" & $B$57-1) -> Δ2019/2018 | C68: =(C67/C53-1)*100 -> 2.790697674 | D68: =(D67/D53-1)*100 -> 2.53164557 | E68: 0 | F68: 5.190839695 | G68: 5.613305613 | H68: 2.987697715 | I68: =(I67/I53-1)*100 -> 0 | J68: =(J67/J53-1)*100 -> 1.976284585 | K68: =(K67/K53-1)*100 -> 3.06122449 | L68: =(L67/L53-1)*100 -> 1.82767624 | N68: =(N67/N53-1)*100 -> 3.125 | O68: =(O67/O53-1)*100 -> 4.421768707 | P68: =(P67/P53-1)*100 -> 0 | Q68: =(Q67/Q53-1)*100 -> 0.9523809524 | S68: =(S67/S53-1)*100 -> 1.754385965 | T68: =(T67/T53-1)*100 -> 0 | U68: =(U67/U53-1)*100 -> 0 | V68: =(V67/V53-1)*100 -> 2.788104089 | W68: 0 | X68: =(X67/X53-1)*100 -> 2.428632297 | Y68: =(Y67/Y53-1)*100 -> 4.166666667
B69: Transformadores | C69: 14420 | D69: 5456 | E69: 1300 | F69: 3838 | G69: 8950 | H69: 3470 | I69: 2100 | J69: 1200 | K69: 6131 | L69: 12350 | N69: 2700 | O69: 5700 | P69: 600 | Q69: 11700 | S69: 3450 | T69: 1600 | U69: 4500 | V69: =SUM(C69:U69)+W69 -> 90365 | W69: 900 | X69: =V69-Y69 -> 83057 | Y69: =F69+H69 -> 7308
B70: =CONCATENATE("Δ" & $B$57 & "/" & $B$57-1) -> Δ2019/2018 | C70: =(C69/C55-1)*100 -> 0 | D70: =(D69/D55-1)*100 -> 0 | E70: 0 | F70: 10.82876119 | G70: 0 | H70: 4.833836858 | I70: 0 | J70: 0 | K70: 0 | L70: 0 | N70: 0 | O70: 0 | P70: 0 | Q70: 0 | S70: 0 | T70: 0 | U70: 0 | V70: 0.5955694089 | W70: 0 | X70: 0 | Y70: 7.899010778
B71: 2020
B72: CCAA | C72: Andalucía | D72: Aragón | E72: Asturias | F72: Baleares | G72: C. Valenciana | H72: Canarias | I72: Cantabria | J72: Castilla-La Mancha | K72: Castilla y León | L72: Cataluña | M72: Ceuta | N72: Extremadura | O72: Galicia | P72: La Rioja | Q72: Madrid | R72: Melilla | S72: Murcia | T72: Navarra | U72: País Vasco | V72: TOTAL | W72: MÓVILES | X72: PENINSULAR | Y72: NO PENINSULAR
B73: km líneas 400 kV | C73: 2764.14959 | D73: 1447.051699 | E73: 539.0682043 | G73: 1073.171488 | I73: 240.5107043 | J73: 2612.814496 | K73: 4511.660432 | L73: 2237.079333 | N73: 2291.070447 | O73: 1345.968287 | P73: 114.9490595 | Q73: 992.6117087 | S73: 708.1121371 | T73: 175.9700702 | U73: 698.9563434 | V73: =SUM(C73:U73) -> 21753.144 | X73: =V73-Y73 -> 21753.144 | Y73: =F73+H73 -> 0
B74: km líneas 220 kV | C74: 3258.615495 | D74: 1885.140817 | E74: 432.2110202 | F74: 447.664 | G74: 1334.47376 | H74: 239.145 | I74: 324.1211061 | J74: 1528.305979 | K74: 3317.344074 | L74: 2546.890294 | N74: 859.3478674 | O74: 1332.484 | P74: 142.308 | Q74: 1186.993385 | S74: 124.31174 | T74: 318.8290202 | U74: 661.8999412 | V74: =SUM(C74:U74) -> 19940.0855 | X74: =V74-Y74 -> 19253.2765 | Y74: =F74+H74 -> 686.809
B75: km líneas <220 kV | C75: 0 | D75: 0 | E75: 0 | F75: 1481.116 | G75: 0 | H75: 1321.846 | I75: 0 | J75: 0 | K75: 0 | L75: 39.44 | M75: 0 | N75: 5.04 | O75: 12.3 | P75: 0 | Q75: 0 | R75: 0 | S75: 0 | T75: 0 | U75: 0 | V75: 2859.742 | X75: 56.78 | Y75: 2802.962
B76: Total km líneas | C76: =SUM(C73:C75) -> 6022.765084 | D76: 3332.192516 | E76: 971.2792245 | F76: 1928.78 | G76: 2407.645248 | H76: 1560.991 | I76: 564.6318104 | J76: 4141.120476 | K76: 7829.004506 | L76: 4823.409627 | M76: 0 | N76: 3155.458314 | O76: 2690.752287 | P76: 257.2570595 | Q76: 2179.605094 | R76: 0 | S76: 832.4238771 | T76: 494.7990904 | U76: 1360.856285 | V76: 44552.9715 | X76: =SUM(X73:X75) -> 41063.2005 | Y76: =SUM(Y73:Y75) -> 3489.771
B77: =CONCATENATE("Δ" & $B$71 & "/" & $B$71-1) -> Δ2020/2019 | C77: =(C76/C62-1)*100 -> 0.003686150466 | D77: =(D76/D62-1)*100 -> 0.2585449889 | E77: 1.068247527 | F77: 2.960475323 | G77: 0 | H77: 0.7616228331 | I77: 0 | J77: 0.09092758151 | K77: 0 | L77: 0.2446568281 | N77: 0.3172808394 | O77: 0.1484313313 | P77: 0 | Q77: 0.002569338775 | S77: 0 | T77: 0 | U77: 0 | V77: =(V76/V62-1)*100 -> 0.26081195 | X77: =(X76/X62-1)*100 -> 0.1185895892 | Y77: 1.965170152
B78: Posiciones 400 kV | C78: 198.994 | D78: 100 | E78: 48.995 | G78: 184 | I78: 15 | J78: 119 | K78: 251 | L78: 150.85 | N78: 115 | O78: 73 | P78: 8 | Q78: 109 | S78: 71 | T78: 30 | U78: 82 | V78: =SUM(C78:U78)+W78 -> 1555.839 | X78: =V78-F78-H78-M78-R78 -> 1555.839 | Y78: =F78+H78+M78+R78 -> 0
B79: Posiciones 220 kV | C79: 472 | D79: 224 | E79: 44.997 | F79: 124 | G79: 325 | H79: 77 | I79: 50 | J79: 146 | K79: 255 | L79: 628 | N79: 92 | O79: 233 | P79: 30 | Q79: 535 | S79: 50 | T79: 50 | U79: 151 | V79: =SUM(C79:U79)+W79 -> 3493.997 | W79: 7 | X79: =V79-F79-H79-M79-R79 -> 3292.997 | Y79: =F79+H79+M79+R79 -> 201
B80: Posiciones <220 kV | F80: 570 | H80: 553 | L80: 3 | O80: 1 | V80: 1127 | X80: =V80-F80-H80-M80-R80 -> 4 | Y80: =F80+H80+M80+R80 -> 1123
B81: Total posiciones | C81: =SUM(C78:C80) -> 670.994 | D81: =SUM(D78:D80) -> 324 | E81: 93.992 | F81: 694 | G81: 509 | H81: 630 | I81: 65 | J81: 265 | K81: 506 | L81: 781.85 | M81: 0 | N81: 207 | O81: 307 | P81: 38 | Q81: 644 | R81: 0 | S81: 121 | T81: 80 | U81: 233 | V81: =SUM(V78:V80) -> 6176.836 | W81: =SUM(W78:W80) -> 7 | X81: =SUM(X78:X80) -> 4852.836 | Y81: 1324
B82: =CONCATENATE("Δ" & $B$71 & "/" & $B$71-1) -> Δ2020/2019 | C82: =(C81/C67-1)*100 -> 1.205731523 | D82: =(D81/D67-1)*100 -> 0 | E82: -0.008510638298 | F82: 0.7256894049 | G82: 0.1968503937 | H82: 7.508532423 | I82: 0 | J82: 2.713178295 | K82: 0.198019802 | L82: 0.2371794872 | N82: 4.545454545 | O82: 0 | P82: 0 | Q82: 1.257861635 | S82: 4.310344828 | T82: 2.564102564 | U82: 0.8658008658 | V82: =(V81/V67-1)*100 -> 1.542594115 | W82: 0 | X82: 0.9325291181 | Y82: 3.843137255
B83: Transformadores | C83: 14420 | D83: 5456 | E83: 1300 | F83: 3838 | G83: 8950 | H83: 3630 | I83: 2100 | J83: 1200 | K83: 6131 | L83: 12350 | N83: 2700 | O83: 5700 | P83: 600 | Q83: 11700 | S83: 3450 | T83: 1600 | U83: 4500 | V83: =SUM(C83:U83)+W83 -> 90525 | W83: 900 | X83: =V83-F83-H83-M83-R83 -> 83057 | Y83: =F83+H83+M83+R83 -> 7468
B84: =CONCATENATE("Δ" & $B$71 & "/" & $B$71-1) -> Δ2020/2019 | C84: =(C83/C69-1)*100 -> 0 | D84: =(D83/D69-1)*100 -> 0 | E84: 0 | F84: 0 | G84: 0 | H84: 4.610951009 | I84: 0 | J84: 0 | K84: 0 | L84: 0 | N84: 0 | O84: 0 | P84: 0 | Q84: 0 | S84: 0 | T84: 0 | U84: 0 | V84: =(V83/V69-1)*100 -> 0.1770597023 | W84: 0 | X84: 0 | Y84: 2.1893815

Sheet EVOLUCION_RdT (hidden)
B2: evolución líneas | C2: Andalucía | D2: Aragón | E2: Asturias | F2: Baleares | G2: C. Valenciana | H2: Canarias | I2: Cantabria | J2: Castilla-La Mancha | K2: Castilla y León | L2: Cataluña | M2: Ceuta | N2: Extremadura | O2: Galicia | P2: La Rioja | Q2: Madrid | R2: Melilla | S2: Murcia | T2: Navarra | U2: País Vasco | V2: TOTAL | W2: MÓVILES | X2: Resto nacional
A3: 2015 | B3: líneas | C3: =datos_RdT!C6 -> 5933.484084 | D3: =datos_RdT!D6 -> 3124.866616 | E3: =datos_RdT!E6 -> 925.0537845 | F3: =datos_RdT!F6 -> 1674.002 | G3: =datos_RdT!G6 -> 2236.475148 | H3: =datos_RdT!H6 -> 1346.959 | I3: =datos_RdT!I6 -> 564.6318104 | J3: =datos_RdT!J6 -> 4103.078476 | K3: =datos_RdT!K6 -> 7711.569106 | L3: =datos_RdT!L6 -> 4786.975627 | N3: =datos_RdT!N6 -> 3163.049314 | O3: =datos_RdT!O6 -> 2555.251727 | P3: =datos_RdT!P6 -> 257.2570595 | Q3: =datos_RdT!Q6 -> 2152.745494 | S3: =datos_RdT!S6 -> 815.8278771 | T3: =datos_RdT!T6 -> 494.7990904 | U3: =datos_RdT!U6 -> 1359.109285 | V3: =SUM(C3:U3) -> 43205.1355 | X3: =V3-N3 -> 40042.08619
A4: 2015 | B4: posiciones | C4: =datos_RdT!C11 -> 629 | D4: =datos_RdT!D11 -> 312 | E4: =datos_RdT!E11 -> 93 | F4: =datos_RdT!F11 -> 640 | G4: =datos_RdT!G11 -> 444 | H4: =datos_RdT!H11 -> 430 | I4: =datos_RdT!I11 -> 65 | J4: =datos_RdT!J11 -> 249 | K4: =datos_RdT!K11 -> 461 | L4: =datos_RdT!L11 -> 737 | N4: =datos_RdT!N11 -> 191 | O4: =datos_RdT!O11 -> 288 | P4: =datos_RdT!P11 -> 38 | Q4: =datos_RdT!Q11 -> 627 | S4: =datos_RdT!S11 -> 114 | T4: =datos_RdT!T11 -> 77 | U4: =datos_RdT!U11 -> 226 | V4: =SUM(C4:U4)+W4 -> 5628 | W4: =datos_RdT!W11 -> 7 | X4: =V4-N4 -> 5437
A5: 2015 | B5: transformadores | C5: =datos_RdT!C13 -> 14420 | D5: =datos_RdT!D13 -> 4674 | E5: =datos_RdT!E13 -> 1300 | F5: =datos_RdT!F13 -> 3463 | G5: =datos_RdT!G13 -> 8350 | H5: =datos_RdT!H13 -> 2250 | I5: =datos_RdT!I13 -> 2100 | J5: =datos_RdT!J13 -> 1200 | K5: =datos_RdT!K13 -> 6131 | L5: =datos_RdT!L13 -> 11050 | N5: =datos_RdT!N13 -> 2700 | O5: =datos_RdT!O13 -> 5700 | P5: =datos_RdT!P13 -> 600 | Q5: =datos_RdT!Q13 -> 11700 | S5: =datos_RdT!S13 -> 3450 | T5: =datos_RdT!T13 -> 1600 | U5: =datos_RdT!U13 -> 4300 | V5: =SUM(C5:U5)+W5 -> 85888 | W5: =datos_RdT!W13 -> 900 | X5: =V5-N5 -> 83188
A6: 2015 | B6: líneas | C6: =datos_RdT!C7/100 -> 0.005437868575 | D6: =datos_RdT!D7/100 -> 0.01239220958 | E6: =datos_RdT!E7/100 -> 0 | F6: =datos_RdT!F7/100 -> 0.0832917015 | G6: =datos_RdT!G7/100 -> 0.005956642904 | H6: =datos_RdT!H7/100 -> 0.04485488331 | I6: =datos_RdT!I7/100 -> 0.03330699211 | J6: =datos_RdT!J7/100 -> 0 | K6: =datos_RdT!K7/100 -> 0.0001830053263 | L6: =datos_RdT!L7/100 -> 0.003701785093 | N6: =datos_RdT!N7/100 -> 0.02391283134 | O6: =datos_RdT!O7/100 -> 0 | P6: =datos_RdT!P7/100 -> 0 | Q6: =datos_RdT!Q7/100 -> 0 | S6: =datos_RdT!S7/100 -> 0 | T6: =datos_RdT!T7/100 -> 0 | U6: =datos_RdT!U7/100 -> 0.02712790176 | V6: =datos_RdT!V7/100 -> 0.009749255658
A7: 2015 | B7: posiciones | C7: =datos_RdT!C12/100 -> 0.0328407225 | D7: =datos_RdT!D12/100 -> 0.03311258278 | E7: =datos_RdT!E12/100 -> 0 | F7: =datos_RdT!F12/100 -> 0.05436573311 | G7: =datos_RdT!G12/100 -> 0.02304147465 | H7: =datos_RdT!H12/100 -> 0.03614457831 | I7: =datos_RdT!I12/100 -> 0.1607142857 | J7: =datos_RdT!J12/100 -> 0 | K7: =datos_RdT!K12/100 -> 0.06221198157 | L7: =datos_RdT!L12/100 -> 0.01236263736 | N7: =datos_RdT!N12/100 -> 0 | O7: =datos_RdT!O12/100 -> 0 | P7: =datos_RdT!P12/100 -> 0 | Q7: =datos_RdT!Q12/100 -> 0 | S7: =datos_RdT!S12/100 -> 0.01785714286 | T7: =datos_RdT!T12/100 -> 0 | U7: =datos_RdT!U12/100 -> 0.004444444444 | V7: =datos_RdT!V12/100 -> 0.02476329206
A8: 2015 | B8: transformadores | C8: =datos_RdT!C14/100 -> 0 | D8: =datos_RdT!D14/100 -> 0 | E8: =datos_RdT!E14/100 -> 0 | F8: =datos_RdT!F14/100 -> 0.1609118337 | G8: =datos_RdT!G14/100 -> 0 | H8: =datos_RdT!H14/100 -> 0.2 | I8: =datos_RdT!I14/100 -> 0 | J8: =datos_RdT!J14/100 -> 0 | K8: =datos_RdT!K14/100 -> 0 | L8: =datos_RdT!L14/100 -> 0 | N8: =datos_RdT!N14/100 -> 0 | O8: =datos_RdT!O14/100 -> 0 | P8: =datos_RdT!P14/100 -> 0 | Q8: =datos_RdT!Q14/100 -> 0 | S8: =datos_RdT!S14/100 -> 0 | T8: =datos_RdT!T14/100 -> 0 | U8: =datos_RdT!U14/100 -> 0 | V8: =datos_RdT!V14/100 -> 0.01005491985
A9: 2016 | B9: líneas | C9: =datos_RdT!C20 -> 5958.431084 | D9: =datos_RdT!D20 -> 3295.892516 | E9: =datos_RdT!E20 -> 961.0132245 | F9: =datos_RdT!F20 -> 1800.936 | G9: =datos_RdT!G20 -> 2364.974248 | H9: =datos_RdT!H20 -> 1354.165 | I9: =datos_RdT!I20 -> 564.6318104 | J9: =datos_RdT!J20 -> 4103.078476 | K9: =datos_RdT!K20 -> 7711.569106 | L9: =datos_RdT!L20 -> 4804.835627 | N9: =datos_RdT!N20 -> 3163.049314 | O9: =datos_RdT!O20 -> 2683.444287 | P9: =datos_RdT!P20 -> 257.2570595 | Q9: =datos_RdT!Q20 -> 2152.745494 | S9: =datos_RdT!S20 -> 832.4238771 | T9: =datos_RdT!T20 -> 494.7990904 | U9: =datos_RdT!U20 -> 1359.148285 | V9: =SUM(C9:U9) -> 43862.3945 | X9: =V9-N9 -> 40699.34519
A10: 2016 | B10: posiciones | C10: =datos_RdT!C25 -> 632 | D10: =datos_RdT!D25 -> 312 | E10: =datos_RdT!E25 -> 93 | F10: =datos_RdT!F25 -> 648 | G10: =datos_RdT!G25 -> 464 | H10: =datos_RdT!H25 -> 450 | I10: =datos_RdT!I25 -> 65 | J10: =datos_RdT!J25 -> 250 | K10: =datos_RdT!K25 -> 462 | L10: =datos_RdT!L25 -> 737 | N10: =datos_RdT!N25 -> 191 | O10: =datos_RdT!O25 -> 294 | P10: =datos_RdT!P25 -> 38 | Q10: =datos_RdT!Q25 -> 629 | S10: =datos_RdT!S25 -> 114 | T10: =datos_RdT!T25 -> 77 | U10: =datos_RdT!U25 -> 228 | V10: =SUM(C10:U10)+W10 -> 5691 | W10: =datos_RdT!W25 -> 7 | X10: =V10-N10 -> 5500
A11: 2016 | B11: transformadores | C11: =datos_RdT!C27 -> 14420 | D11: =datos_RdT!D27 -> 4674 | E11: =datos_RdT!E27 -> 1300 | F11: =datos_RdT!F27 -> 3463 | G11: =datos_RdT!G27 -> 8950 | H11: =datos_RdT!H27 -> 2250 | I11: =datos_RdT!I27 -> 2100 | J11: =datos_RdT!J27 -> 1200 | K11: =datos_RdT!K27 -> 6131 | L11: =datos_RdT!L27 -> 11050 | N11: =datos_RdT!N27 -> 2700 | O11: =datos_RdT!O27 -> 5700 | P11: =datos_RdT!P27 -> 600 | Q11: =datos_RdT!Q27 -> 11700 | S11: =datos_RdT!S27 -> 3450 | T11: =datos_RdT!T27 -> 1600 | U11: =datos_RdT!U27 -> 4300 | V11: =SUM(C11:U11)+W11 -> 86488 | W11: =datos_RdT!W27 -> 900 | X11: =V11-N11 -> 83788
A12: 2016 | B12: líneas | C12: =(C9/C3-1) -> 0.004204443737 | D12: =(D9/D3-1) -> 0.05473062406 | E12: =(E9/E3-1) -> 0.03887281 | F12: =(F9/F3-1) -> 0.07582667165 | G12: 0.05745608221 | H12: 0.005349828762 | I12: 0 | J12: 0 | K12: 0 | L12: 0.003730956953 | N12: 0 | O12: 0.05016827056 | P12: 0 | Q12: 0 | S12: 0.02034252624 | T12: 0 | U12: 2.86952642e-05 | V12: 0.01521252028
A13: 2016 | B13: posiciones | C13: =(C10/C4-1) -> 0.004769475358 | D13: =(D10/D4-1) -> 0 | E13: 0 | F13: 0.0125 | G13: 0.04504504505 | H13: 0.04651162791 | I13: 0 | J13: 0.004016064257 | K13: 0.002169197397 | L13: 0 | N13: 0 | O13: 0.02083333333 | P13: 0 | Q13: 0.003189792663 | S13: 0 | T13: 0 | U13: 0.008849557522 | V13: 0.01119402985
A14: 2016 | B14: transformadores | C14: =(C11/C5-1) -> 0 | D14: =(D11/D5-1) -> 0 | E14: 0 | F14: 0 | G14: 0.07185628743 | H14: 0 | I14: 0 | K14: 0 | L14: 0 | N14: 0 | O14: 0 | Q14: 0 | S14: 0 | T14: 0 | U14: 0 | V14: 0.006985842027
A15: 2017 | B15: líneas | C15: =datos_RdT!C34 -> 5958.431084 | D15: =datos_RdT!D34 -> 3305.572516 | E15: =datos_RdT!E34 -> 961.0132245 | F15: =datos_RdT!F34 -> 1809.219 | G15: =datos_RdT!G34 -> 2380.143248 | H15: =datos_RdT!H34 -> 1355.097 | I15: =datos_RdT!I34 -> 564.6318104 | J15: =datos_RdT!J34 -> 4137.358476 | K15: =datos_RdT!K34 -> 7759.127506 | L15: =datos_RdT!L34 -> 4805.704627 | N15: =datos_RdT!N34 -> 3163.049314 | O15: =datos_RdT!O34 -> 2683.444287 | P15: =datos_RdT!P34 -> 257.2570595 | Q15: =datos_RdT!Q34 -> 2179.399094 | S15: =datos_RdT!S34 -> 832.4238771 | T15: =datos_RdT!T34 -> 494.7990904 | U15: =datos_RdT!U34 -> 1359.262285 | V15: =SUM(C15:U15) -> 44005.9335 | X15: =V15-N15 -> 40842.88419
A16: 2017 | B16: posiciones | C16: =datos_RdT!C39 -> 632 | D16: =datos_RdT!D39 -> 314 | E16: =datos_RdT!E39 -> 93 | F16: =datos_RdT!F39 -> 654 | G16: =datos_RdT!G39 -> 481 | H16: =datos_RdT!H39 -> 500 | I16: =datos_RdT!I39 -> 65 | J16: =datos_RdT!J39 -> 252 | K16: =datos_RdT!K39 -> 476 | L16: =datos_RdT!L39 -> 745 | N16: =datos_RdT!N39 -> 191 | O16: =datos_RdT!O39 -> 294 | P16: =datos_RdT!P39 -> 38 | Q16: =datos_RdT!Q39 -> 630 | S16: =datos_RdT!S39 -> 114 | T16: =datos_RdT!T39 -> 78 | U16: =datos_RdT!U39 -> 230 | V16: =SUM(C16:U16)+W16 -> 5794 | W16: =datos_RdT!W39 -> 7 | X16: =V16-N16 -> 5603
A17: 2017 | B17: transformadores | C17: =datos_RdT!C41 -> 14420 | D17: =datos_RdT!D41 -> 4674 | E17: =datos_RdT!E41 -> 1300 | F17: =datos_RdT!F41 -> 3463 | G17: =datos_RdT!G41 -> 8950 | H17: =datos_RdT!H41 -> 2810 | I17: =datos_RdT!I41 -> 2100 | J17: =datos_RdT!J41 -> 1200 | K17: =datos_RdT!K41 -> 6131 | L17: =datos_RdT!L41 -> 11050 | N17: =datos_RdT!N41 -> 2700 | O17: =datos_RdT!O41 -> 5700 | P17: =datos_RdT!P41 -> 600 | Q17: =datos_RdT!Q41 -> 11700 | S17: =datos_RdT!S41 -> 3450 | T17: =datos_RdT!T41 -> 1600 | U17: =datos_RdT!U41 -> 4300 | V17: =SUM(C17:U17)+W17 -> 87048 | W17: =datos_RdT!W41 -> 900 | X17: =V17-N17 -> 84348
A18: 2017 | B18: líneas | C18: =(C15/C9-1) -> 0 | D18: =(D15/D9-1) -> 0.00293698898 | E18: 0 | F18: 0.004599275044 | G18: 0.006414023328 | H18: 0.0006882470009 | I18: 0 | J18: 0.008354702501 | K18: 0.006167149558 | L18: 0.0001808594648 | N18: 0 | O18: 0 | P18: 0 | Q18: 0.01238121277 | S18: 0 | T18: 0 | U18: 8.387605774e-05 | V18: 0.00327248436
A19: 2017 | B19: posiciones | C19: =(C16/C10-1) -> 0 | D19: =(D16/D10-1) -> 0.00641025641 | E19: 0 | F19: 0.009259259259 | G19: 0.03663793103 | H19: 0.1111111111 | I19: 0 | J19: 0.008 | K19: 0.0303030303 | L19: 0.01085481682 | N19: 0 | O19: 0 | P19: 0 | Q19: 0.001589825119 | S19: 0 | T19: 0.01298701299 | U19: 0.008771929825 | V19: 0.01809875242
A20: 2017 | B20: transformadores | C20: =(C17/C11-1) -> 0 | D20: =(D17/D11-1) -> 0 | E20: 0 | F20: 0 | G20: 0 | H20: 0.2488888889 | I20: 0 | J20: =(J17/J11-1) -> 0 | K20: 0 | L20: 0 | N20: 0 | O20: 0 | Q20: 0 | S20: 0 | T20: 0 | U20: 0 | V20: 0.006474886689
A21: 2018 | B21: líneas | C21: =datos_RdT!C48 -> 5973.697084 | D21: =datos_RdT!D48 -> 3305.572516 | E21: =datos_RdT!E48 -> 961.0132245 | F21: =datos_RdT!F48 -> 1853.942 | G21: =datos_RdT!G48 -> 2406.687248 | H21: =datos_RdT!H48 -> 1481.836 | I21: =datos_RdT!I48 -> 564.6318104 | J21: =datos_RdT!J48 -> 4137.358476 | K21: =datos_RdT!K48 -> 7789.602506 | L21: =datos_RdT!L48 -> 4810.682627 | N21: =datos_RdT!N48 -> 3163.049314 | O21: =datos_RdT!O48 -> 2683.444287 | P21: =datos_RdT!P48 -> 257.2570595 | Q21: =datos_RdT!Q48 -> 2179.399094 | S21: =datos_RdT!S48 -> 832.4238771 | T21: =datos_RdT!T48 -> 494.7990904 | U21: =datos_RdT!U48 -> 1359.262285 | V21: =SUM(C21:U21) -> 44254.6585 | X21: =V21-N21 -> 41091.60919
A22: 2018 | B22: posiciones | C22: =datos_RdT!C53 -> 645 | D22: =datos_RdT!D53 -> 316 | E22: =datos_RdT!E53 -> 94 | F22: =datos_RdT!F53 -> 655 | G22: =datos_RdT!G53 -> 481 | H22: =datos_RdT!H53 -> 569 | I22: =datos_RdT!I53 -> 65 | J22: =datos_RdT!J53 -> 253 | K22: =datos_RdT!K53 -> 490 | L22: =datos_RdT!L53 -> 766 | N22: =datos_RdT!N53 -> 192 | O22: =datos_RdT!O53 -> 294 | P22: =datos_RdT!P53 -> 38 | Q22: =datos_RdT!Q53 -> 630 | S22: =datos_RdT!S53 -> 114 | T22: =datos_RdT!T53 -> 78 | U22: =datos_RdT!U53 -> 231 | V22: =SUM(C22:U22)+W22 -> 5918 | W22: =datos_RdT!W53 -> 7 | X22: =V22-N22 -> 5726
A23: 2018 | B23: transformadores | C23: =datos_RdT!C55 -> 14420 | D23: =datos_RdT!D55 -> 5456 | E23: =datos_RdT!E55 -> 1300 | F23: =datos_RdT!F55 -> 3463 | G23: =datos_RdT!G55 -> 8950 | H23: =datos_RdT!H55 -> 3310 | I23: =datos_RdT!I55 -> 2100 | J23: =datos_RdT!J55 -> 1200 | K23: =datos_RdT!K55 -> 6131 | L23: =datos_RdT!L55 -> 12350 | N23: =datos_RdT!N55 -> 2700 | O23: =datos_RdT!O55 -> 5700 | P23: =datos_RdT!P55 -> 600 | Q23: =datos_RdT!Q55 -> 11700 | S23: =datos_RdT!S55 -> 3450 | T23: =datos_RdT!T55 -> 1600 | U23: =datos_RdT!U55 -> 4500 | V23: =SUM(C23:U23)+W23 -> 89830 | W23: =datos_RdT!W55 -> 900 | X23: =V23-N23 -> 87130
A24: 2018 | B24: líneas | C24: =(C21/C15-1) -> 0.002562083841 | D24: =(D21/D15-1) -> 0 | E24: 0 | F24: 0.02471950604 | G24: 0.01115226994 | H24: 0.09352762201 | I24: 0 | J24: 0 | K24: 0.003927632324 | L24: 0.00103585226 | N24: 0 | O24: 0 | P24: 0 | Q24: 0 | S24: 0 | T24: 0 | U24: 0 | V24: 0.005652078713
A25: 2018 | B25: posiciones | C25: =(C22/C16-1) -> 0.02056962025 | D25: =(D22/D16-1) -> 0.006369426752 | E25: 0.01075268817 | F25: 0.001529051988 | G25: 0 | H25: 0.138 | I25: 0 | J25: 0.003968253968 | K25: 0.02941176471 | L25: 0.02818791946 | N25: 0.005235602094 | O25: 0 | P25: 0 | Q25: 0 | S25: 0 | T25: 0 | U25: 0.004347826087 | V25: 0.02140144978
A26: 2018 | B26: transformadores | C26: =(C23/C17-1) -> 0 | D26: =(D23/D17-1) -> 0.1673085152 | E26: 0 | F26: 0 | G26: 0 | H26: 0.1779359431 | I26: 0 | J26: 0 | K26: 0 | L26: 0.1176470588 | N26: 0 | O26: 0 | P26: 0 | Q26: 0 | S26: 0 | T26: 0 | U26: 0.04651162791 | V26: 0.03195937873
A27: 2019 | B27: líneas | C27: =datos_RdT!C62 -> 6022.543084 | D27: =datos_RdT!D62 -> 3323.599516 | E27: =datos_RdT!E62 -> 961.0132245 | F27: =datos_RdT!F62 -> 1873.3208 | G27: =datos_RdT!G62 -> 2407.645248 | H27: =datos_RdT!H62 -> 1549.192 | I27: =datos_RdT!I62 -> 564.6318104 | J27: =datos_RdT!J62 -> 4137.358476 | K27: =datos_RdT!K62 -> 7829.004506 | L27: =datos_RdT!L62 -> 4811.637627 | M27: =datos_RdT!M62 -> 0 | N27: =datos_RdT!N62 -> 3145.478314 | O27: =datos_RdT!O62 -> 2686.764287 | P27: =datos_RdT!P62 -> 257.2570595 | Q27: =datos_RdT!Q62 -> 2179.549094 | S27: =datos_RdT!S62 -> 832.4238771 | T27: =datos_RdT!T62 -> 494.7990904 | U27: =datos_RdT!U62 -> 1360.856285 | V27: 44437.0743 | X27: =V27-N27 -> 41291.59599
A28: 2019 | B28: posiciones | C28: =datos_RdT!C67 -> 663 | D28: =datos_RdT!D67 -> 324 | E28: =datos_RdT!E67 -> 94 | F28: =datos_RdT!F67 -> 689 | G28: =datos_RdT!G67 -> 508 | H28: =datos_RdT!H67 -> 586 | I28: =datos_RdT!I67 -> 65 | J28: =datos_RdT!J67 -> 258 | K28: =datos_RdT!K67 -> 505 | L28: =datos_RdT!L67 -> 780 | M28: =datos_RdT!M67 -> 0 | N28: =datos_RdT!N67 -> 198 | O28: =datos_RdT!O67 -> 307 | P28: =datos_RdT!P67 -> 38 | Q28: =datos_RdT!Q67 -> 636 | S28: =datos_RdT!S67 -> 116 | T28: =datos_RdT!T67 -> 78 | U28: =datos_RdT!U67 -> 231 | V28: =SUM(C28:U28)+W28 -> 6083 | W28: =datos_RdT!W67 -> 7 | X28: =V28-N28 -> 5885
A29: 2019 | B29: transformadores | C29: =datos_RdT!C69 -> 14420 | D29: =datos_RdT!D69 -> 5456 | E29: =datos_RdT!E69 -> 1300 | F29: =datos_RdT!F69 -> 3838 | G29: =datos_RdT!G69 -> 8950 | H29: =datos_RdT!H69 -> 3470 | I29: =datos_RdT!I69 -> 2100 | J29: =datos_RdT!J69 -> 1200 | K29: =datos_RdT!K69 -> 6131 | L29: =datos_RdT!L69 -> 12350 | M29: =datos_RdT!M69 -> 0 | N29: =datos_RdT!N69 -> 2700 | O29: =datos_RdT!O69 -> 5700 | P29: =datos_RdT!P69 -> 600 | Q29: =datos_RdT!Q69 -> 11700 | S29: =datos_RdT!S69 -> 3450 | T29: =datos_RdT!T69 -> 1600 | U29: =datos_RdT!U69 -> 4500 | V29: =SUM(C29:U29)+W29 -> 90365 | W29: =datos_RdT!W69 -> 900 | X29: =V29-N29 -> 87665
A30: 2019 | B30: líneas | C30: =(C27/C21-1) -> 0.008176845814 | D30: =(D27/D21-1) -> 0.005453518237 | E30: 0 | F30: 0.01045275419 | G30: 0.0003980575376 | H30: 0.04545442276 | I30: 0 | J30: 0 | K30: 0.005058281211 | L30: 0.0001985165254 | N30: -0.005555082534 | O30: 0.001237215923 | P30: 0 | Q30: 6.882631107e-05 | S30: 0 | T30: 0 | U30: 0.001172694938 | V30: 0.004121957014
A31: 2019 | B31: posiciones | C31: =(C28/C22-1) -> 0.02790697674 | D31: =(D28/D22-1) -> 0.0253164557 | E31: 0 | F31: 0.05190839695 | G31: 0.05613305613 | H31: 0.02987697715 | I31: 0 | J31: 0.01976284585 | K31: 0.0306122449 | L31: 0.0182767624 | N31: 0.03125 | O31: 0.04421768707 | P31: 0 | Q31: 0.009523809524 | S31: 0.01754385965 | T31: 0 | U31: 0 | V31: 0.02788104089
A32: 2019 | B32: transformadores | C32: =(C29/C23-1) -> 0 | D32: =(D29/D23-1) -> 0 | E32: 0 | F32: 0.1082876119 | G32: 0 | H32: 0.04833836858 | I32: 0 | J32: 0 | K32: 0 | L32: 0 | N32: 0 | O32: 0 | P32: 0 | Q32: 0 | S32: 0 | T32: 0 | U32: 0 | V32: 0.005955694089
A33: 2020 | B33: líneas | C33: =datos_RdT!C76 -> 6022.765084 | D33: =datos_RdT!D76 -> 3332.192516 | E33: =datos_RdT!E76 -> 971.2792245 | F33: =datos_RdT!F76 -> 1928.78 | G33: =datos_RdT!G76 -> 2407.645248 | H33: =datos_RdT!H76 -> 1560.991 | I33: =datos_RdT!I76 -> 564.6318104 | J33: =datos_RdT!J76 -> 4141.120476 | K33: =datos_RdT!K76 -> 7829.004506 | L33: =datos_RdT!L76 -> 4823.409627 | N33: =datos_RdT!N76 -> 3155.458314 | O33: =datos_RdT!O76 -> 2690.752287 | P33: =datos_RdT!P76 -> 257.2570595 | Q33: =datos_RdT!Q76 -> 2179.605094 | S33: =datos_RdT!S76 -> 832.4238771 | T33: =datos_RdT!T76 -> 494.7990904 | U33: =datos_RdT!U76 -> 1360.856285 | V33: =datos_RdT!V76 -> 44552.9715 | X33: =V33-N33 -> 41397.51319
A34: 2020 | B34: posiciones | C34: =datos_RdT!C81 -> 670.994 | D34: =datos_RdT!D81 -> 324 | E34: =datos_RdT!E81 -> 93.992 | F34: =datos_RdT!F81 -> 694 | G34: =datos_RdT!G81 -> 509 | H34: =datos_RdT!H81 -> 630 | I34: =datos_RdT!I81 -> 65 | J34: =datos_RdT!J81 -> 265 | K34: =datos_RdT!K81 -> 506 | L34: =datos_RdT!L81 -> 781.85 | N34: =datos_RdT!N81 -> 207 | O34: =datos_RdT!O81 -> 307 | P34: =datos_RdT!P81 -> 38 | Q34: =datos_RdT!Q81 -> 644 | S34: =datos_RdT!S81 -> 121 | T34: =datos_RdT!T81 -> 80 | U34: =datos_RdT!U81 -> 233 | V34: =datos_RdT!V81 -> 6176.836 | W34: =datos_RdT!W81 -> 7 | X34: =V34-N34 -> 5969.836
A35: 2020 | B35: transformadores | C35: =datos_RdT!C83 -> 14420 | D35: =datos_RdT!D83 -> 5456 | E35: =datos_RdT!E83 -> 1300 | F35: =datos_RdT!F83 -> 3838 | G35: =datos_RdT!G83 -> 8950 | H35: =datos_RdT!H83 -> 3630 | I35: =datos_RdT!I83 -> 2100 | J35: =datos_RdT!J83 -> 1200 | K35: =datos_RdT!K83 -> 6131 | L35: =datos_RdT!L83 -> 12350 | N35: =datos_RdT!N83 -> 2700 | O35: =datos_RdT!O83 -> 5700 | P35: =datos_RdT!P83 -> 600 | Q35: =datos_RdT!Q83 -> 11700 | S35: =datos_RdT!S83 -> 3450 | T35: =datos_RdT!T83 -> 1600 | U35: =datos_RdT!U83 -> 4500 | V35: =datos_RdT!V83 -> 90525 | W35: =datos_RdT!W83 -> 900 | X35: =V35-N35 -> 87825
A36: 2020 | B36: líneas | C36: =(C33/C27-1) -> 3.686150466e-05 | D36: =(D33/D27-1) -> 0.002585449889 | E36: 0.01068247527 | F36: 0.02960475323 | G36: 0 | H36: 0.007616228331 | I36: 0 | J36: 0.0009092758151 | K36: 0 | L36: 0.002446568281 | N36: 0.003172808394 | O36: 0.001484313313 | P36: 0 | Q36: 2.569338775e-05 | S36: 0 | T36: 0 | U36: 0 | V36: 0.0026081195
A37: 2020 | B37: posiciones | C37: =(C34/C28-1) -> 0.01205731523 | D37: =(D34/D28-1) -> 0 | E37: -8.510638298e-05 | F37: 0.007256894049 | G37: 0.001968503937 | H37: 0.07508532423 | I37: 0 | J37: 0.02713178295 | K37: 0.00198019802 | L37: 0.002371794872 | N37: 0.04545454545 | O37: 0 | P37: 0 | Q37: 0.01257861635 | S37: 0.04310344828 | T37: 0.02564102564 | U37: 0.008658008658 | V37: 0.01542594115
A38: 2020 | B38: transformadores | C38: =(C35/C29-1) -> 0 | D38: =(D35/D29-1) -> 0 | E38: 0 | F38: 0 | G38: 0 | H38: 0.04610951009 | I38: 0 | J38: 0 | K38: 0 | L38: 0 | N38: 0 | O38: 0 | P38: 0 | Q38: 0 | S38: 0 | T38: 0 | U38: 0 | V38: 0.001770597023

Sheet Año (hidden)
B2: 2015
B3: 2016
B4: 2017
B5: 2018
B6: 2019
B7: 2020
